[Event "Titled Tuesday Blitz August 17 2021"]
[White "Pavlov, Danila"]
[Black "Bilan, Danila"]
[WhiteFideId "34126594"]
[BlackFideId "24161918"]
[WhiteElo "2323"]
[BlackElo "2164"]
[Result "1-0"]
[Round "09"]
[TimeControl "180+1"]
[Date "2021.08.17"]
[WhiteClock "0:00:14"]
[BlackClock "0:00:02"]

1. e4 {[%clk 0:03:00]}  c6 {[%clk 0:02:58]} 2. Nc3 {[%clk 0:02:59]}  d5 {[%clk 0:02:59]} 3. Nf3 {[%clk 0:02:59]}  Bg4 {[%clk 0:02:57]} 4. h3 {[%clk 0:02:59]}  Bxf3 {[%clk 0:02:57]} 5. Qxf3 {[%clk 0:03:00]}  e6 {[%clk 0:02:56]} 6. d3 {[%clk 0:03:00]}  Nd7 {[%clk 0:02:55]} 7. Qg3 {[%clk 0:03:00]}  g6 {[%clk 0:02:53]} 8. Be2 {[%clk 0:02:53]}  Bg7 {[%clk 0:02:53]} 9. O-O {[%clk 0:02:53]}  Ngf6 {[%clk 0:02:47]} 10. f4 {[%clk 0:02:53]}  O-O {[%clk 0:02:42]} 11. Kh1 {[%clk 0:02:49]}  Qc7 {[%clk 0:02:35]} 12. a4 {[%clk 0:02:34]}  Rab8 {[%clk 0:02:02]} 13. Be3 {[%clk 0:02:27]}  d4 {[%clk 0:01:48]} 14. Bxd4 {[%clk 0:02:26]}  Nxe4 {[%clk 0:01:48]} 15. dxe4 {[%clk 0:02:09]}  Bxd4 {[%clk 0:01:48]} 16. e5 {[%clk 0:02:09]}  Bxc3 {[%clk 0:01:40]} 17. Qxc3 {[%clk 0:02:08]}  Nb6 {[%clk 0:01:32]} 18. Qc5 {[%clk 0:02:00]}  Rbd8 {[%clk 0:01:28]} 19. Bf3 {[%clk 0:01:51]}  Rd2 {[%clk 0:01:21]} 20. a5 {[%clk 0:01:42]}  Nc8 {[%clk 0:01:14]} 21. Be4 {[%clk 0:01:29]}  Rfd8 {[%clk 0:01:05]} 22. Bd3 {[%clk 0:01:27]}  Qe7 {[%clk 0:00:43]} 23. Qc3 {[%clk 0:01:10]}  R2xd3 {[%clk 0:00:36]} 24. cxd3 {[%clk 0:01:11]}  a6 {[%clk 0:00:34]} 25. Ra4 {[%clk 0:01:02]}  Qc7 {[%clk 0:00:32]} 26. Rd4 {[%clk 0:00:55]}  Rxd4 {[%clk 0:00:31]} 27. Qxd4 {[%clk 0:00:56]}  Qxa5 {[%clk 0:00:32]} 28. Qd7 {[%clk 0:00:57]}  Na7 {[%clk 0:00:21]} 29. Qxb7 {[%clk 0:00:52]}  Qc5 {[%clk 0:00:21]} 30. Qxa6 {[%clk 0:00:49]}  Nb5 {[%clk 0:00:22]} 31. Qa4 {[%clk 0:00:44]}  Kg7 {[%clk 0:00:18]} 32. Qc4 {[%clk 0:00:44]}  Qb6 {[%clk 0:00:17]} 33. b4 {[%clk 0:00:40]}  Qe3 {[%clk 0:00:10]} 34. Rf3 {[%clk 0:00:30]}  Qb6 {[%clk 0:00:07]} 35. Qc5 {[%clk 0:00:27]}  Qa6 {[%clk 0:00:07]} 36. Kh2 {[%clk 0:00:26]}  Qa1 {[%clk 0:00:05]} 37. Re3 {[%clk 0:00:20]}  Nd4 {[%clk 0:00:02]} 38. Re4 {[%clk 0:00:21]}  Nf5 {[%clk 0:00:03]} 39. Qxc6 {[%clk 0:00:20]}  Qd1 {[%clk 0:00:02]} 40. Qc3 {[%clk 0:00:19]}  h5 {[%clk 0:00:02]} 41. Re1 {[%clk 0:00:18]}  Qa4 {[%clk 0:00:01]} 42. Rb1 {[%clk 0:00:18]}  Qd7 {[%clk 0:00:02]} 43. b5 {[%clk 0:00:18]}  h4 {[%clk 0:00:03]} 44. b6 {[%clk 0:00:18]}  Qb7 {[%clk 0:00:03]} 45. Qc7 {[%clk 0:00:18]}  Qd5 {[%clk 0:00:03]} 46. b7 {[%clk 0:00:18]}  Ne3 {[%clk 0:00:03]} 47. Rb2 {[%clk 0:00:15]}  Qd4 {[%clk 0:00:03]} 48. Qc1 {[%clk 0:00:13]}  Qxf4+ {[%clk 0:00:03]} 49. Kh1 {[%clk 0:00:13]}  Qxe5 {[%clk 0:00:03]} 50. b8=Q {[%clk 0:00:13]}  Qxb8 {[%clk 0:00:02]} 51. Rxb8 {[%clk 0:00:14]} 1-0


[Site "https://www.chess.com"]

[Event "Titled Tuesday Blitz August 17 2021"]
[White "Primbetov, Kazbek"]
[Black "Dev, Shah"]
[WhiteFideId "13702297"]
[BlackFideId "35019058"]
[WhiteElo "2184"]
[BlackElo "2098"]
[Result "1-0"]
[Round "09"]
[TimeControl "180+1"]
[Date "2021.08.17"]
[WhiteClock "0:00:07"]
[BlackClock "0:00:09"]

1. d4 {[%clk 0:03:00]}  d5 {[%clk 0:02:58]} 2. Bf4 {[%clk 0:03:00]}  Nf6 {[%clk 0:02:58]} 3. e3 {[%clk 0:03:00]}  e6 {[%clk 0:02:57]} 4. c3 {[%clk 0:03:00]}  c5 {[%clk 0:02:57]} 5. Nd2 {[%clk 0:02:59]}  Bd6 {[%clk 0:02:57]} 6. Bxd6 {[%clk 0:02:58]}  Qxd6 {[%clk 0:02:57]} 7. f4 {[%clk 0:02:59]}  Nbd7 {[%clk 0:02:54]} 8. Ngf3 {[%clk 0:02:59]}  b6 {[%clk 0:02:53]} 9. Bd3 {[%clk 0:02:57]}  Bb7 {[%clk 0:02:53]} 10. O-O {[%clk 0:02:54]}  Ne4 {[%clk 0:02:54]} 11. Qc2 {[%clk 0:02:47]}  f5 {[%clk 0:02:50]} 12. Ne5 {[%clk 0:02:45]}  Ndf6 {[%clk 0:02:49]} 13. Nxe4 {[%clk 0:02:36]}  dxe4 {[%clk 0:02:41]} 14. Bb5+ {[%clk 0:02:33]}  Kf8 {[%clk 0:02:36]} 15. Rfd1 {[%clk 0:02:29]}  Rc8 {[%clk 0:02:10]} 16. Qe2 {[%clk 0:02:22]}  Nd5 {[%clk 0:01:54]} 17. dxc5 {[%clk 0:01:57]}  bxc5 {[%clk 0:01:50]} 18. c4 {[%clk 0:01:54]}  g6 {[%clk 0:01:36]} 19. cxd5 {[%clk 0:01:52]}  exd5 {[%clk 0:01:37]} 20. Rd2 {[%clk 0:01:42]}  Kg7 {[%clk 0:01:34]} 21. Rad1 {[%clk 0:01:42]}  Rhd8 {[%clk 0:01:28]} 22. Bc4 {[%clk 0:01:10]}  Qe6 {[%clk 0:01:20]} 23. Qf2 {[%clk 0:00:58]}  Rd6 {[%clk 0:01:14]} 24. Bb3 {[%clk 0:00:42]}  Rcd8 {[%clk 0:01:09]} 25. Rc1 {[%clk 0:00:38]}  Qc8 {[%clk 0:00:53]} 26. Rdc2 {[%clk 0:00:32]}  c4 {[%clk 0:00:53]} 27. Rc3 {[%clk 0:00:30]}  Ba6 {[%clk 0:00:48]} 28. Ba4 {[%clk 0:00:26]}  Qb7 {[%clk 0:00:46]} 29. Rd1 {[%clk 0:00:25]}  Qb6 {[%clk 0:00:42]} 30. Rd4 {[%clk 0:00:23]}  Qb4 {[%clk 0:00:41]} 31. Qc2 {[%clk 0:00:19]}  g5 {[%clk 0:00:22]} 32. Nc6 {[%clk 0:00:18]}  Rxc6 {[%clk 0:00:19]} 33. Bxc6 {[%clk 0:00:19]}  gxf4 {[%clk 0:00:19]} 34. Rxd5 {[%clk 0:00:14]}  Rxd5 {[%clk 0:00:17]} 35. Bxd5 {[%clk 0:00:15]}  Qc5 {[%clk 0:00:17]} 36. Qf2 {[%clk 0:00:08]}  Qxd5 {[%clk 0:00:14]} 37. Qxf4 {[%clk 0:00:07]}  Qd1+ {[%clk 0:00:11]} 38. Qf1 {[%clk 0:00:07]}  Qd2 {[%clk 0:00:11]} 39. Qc1 {[%clk 0:00:06]}  Qe2 {[%clk 0:00:10]} 40. Rc2 {[%clk 0:00:05]}  Qg4 {[%clk 0:00:09]} 41. Qe1 {[%clk 0:00:05]}  f4 {[%clk 0:00:08]} 42. exf4 {[%clk 0:00:05]}  Qf5 {[%clk 0:00:07]} 43. Qe3 {[%clk 0:00:05]}  Qd5 {[%clk 0:00:07]} 44. Rd2 {[%clk 0:00:05]}  Qe6 {[%clk 0:00:06]} 45. Qd4+ {[%clk 0:00:05]}  Kg6 {[%clk 0:00:05]} 46. Qe5 {[%clk 0:00:05]}  Qb6+ {[%clk 0:00:05]} 47. Qd4 {[%clk 0:00:05]}  Qb4 {[%clk 0:00:05]} 48. Qd6+ {[%clk 0:00:05]}  Qxd6 {[%clk 0:00:06]} 49. Rxd6+ {[%clk 0:00:06]}  Kf5 {[%clk 0:00:07]} 50. Rxa6 {[%clk 0:00:06]}  e3 {[%clk 0:00:08]} 51. Kf1 {[%clk 0:00:06]}  Ke4 {[%clk 0:00:09]} 52. Ke2 {[%clk 0:00:07]} 1-0


[Site "https://www.chess.com"]

[Event "Titled Tuesday Blitz August 17 2021"]
[White "Przybylski, Wojciech"]
[Black "Gelman, Alexander"]
[WhiteFideId "1117599"]
[BlackFideId "4118316"]
[WhiteElo "2250"]
[BlackElo "2375"]
[Result "1-0"]
[Round "09"]
[TimeControl "180+1"]
[Date "2021.08.17"]
[WhiteClock "0:00:04"]
[BlackClock "0:00:01"]

1. e4 {[%clk 0:02:58]}  c5 {[%clk 0:02:58]} 2. Nf3 {[%clk 0:02:55]}  e6 {[%clk 0:02:58]} 3. c4 {[%clk 0:02:54]}  d6 {[%clk 0:02:58]} 4. Nc3 {[%clk 0:02:53]}  a6 {[%clk 0:02:58]} 5. d3 {[%clk 0:02:52]}  Nc6 {[%clk 0:02:57]} 6. Be2 {[%clk 0:02:51]}  Nf6 {[%clk 0:02:57]} 7. O-O {[%clk 0:02:51]}  Be7 {[%clk 0:02:57]} 8. Be3 {[%clk 0:02:50]}  O-O {[%clk 0:02:57]} 9. Nd2 {[%clk 0:02:49]}  Rb8 {[%clk 0:02:53]} 10. f4 {[%clk 0:02:48]}  b5 {[%clk 0:02:53]} 11. b3 {[%clk 0:02:44]}  Nd7 {[%clk 0:02:46]} 12. Rc1 {[%clk 0:02:43]}  Bf6 {[%clk 0:02:44]} 13. e5 {[%clk 0:02:35]}  dxe5 {[%clk 0:02:42]} 14. Nce4 {[%clk 0:02:35]}  Be7 {[%clk 0:02:34]} 15. Nf3 {[%clk 0:02:20]}  exf4 {[%clk 0:02:30]} 16. Bxf4 {[%clk 0:02:18]}  Rb6 {[%clk 0:02:11]} 17. cxb5 {[%clk 0:02:17]}  axb5 {[%clk 0:02:11]} 18. Be3 {[%clk 0:02:15]}  Nb4 {[%clk 0:01:51]} 19. d4 {[%clk 0:01:53]}  Nd5 {[%clk 0:01:37]} 20. Bf2 {[%clk 0:01:53]}  cxd4 {[%clk 0:01:35]} 21. Bxd4 {[%clk 0:01:36]}  Bb7 {[%clk 0:01:29]} 22. Kh1 {[%clk 0:01:30]}  Ra6 {[%clk 0:01:19]} 23. a4 {[%clk 0:01:22]}  bxa4 {[%clk 0:01:16]} 24. Bxa6 {[%clk 0:01:15]}  Bxa6 {[%clk 0:01:16]} 25. Rf2 {[%clk 0:01:12]}  a3 {[%clk 0:01:16]} 26. Nc5 {[%clk 0:00:44]}  Nxc5 {[%clk 0:01:07]} 27. Bxc5 {[%clk 0:00:45]}  Bxc5 {[%clk 0:01:07]} 28. Rxc5 {[%clk 0:00:46]}  Qb6 {[%clk 0:01:07]} 29. Qd4 {[%clk 0:00:13]}  Qxb3 {[%clk 0:00:59]} 30. h3 {[%clk 0:00:12]}  a2 {[%clk 0:00:48]} 31. Ra5 {[%clk 0:00:12]}  Bc4 {[%clk 0:00:29]} 32. Kh2 {[%clk 0:00:12]}  Qb8+ {[%clk 0:00:21]} 33. Qe5 {[%clk 0:00:12]}  Qb6 {[%clk 0:00:20]} 34. Rfxa2 {[%clk 0:00:07]}  Bxa2 {[%clk 0:00:19]} 35. Rxa2 {[%clk 0:00:07]}  Qc7 {[%clk 0:00:17]} 36. Qxc7 {[%clk 0:00:07]}  Nxc7 {[%clk 0:00:18]} 37. Ra7 {[%clk 0:00:07]}  Nd5 {[%clk 0:00:18]} 38. Ne5 {[%clk 0:00:07]}  g6 {[%clk 0:00:17]} 39. h4 {[%clk 0:00:07]}  h5 {[%clk 0:00:17]} 40. Kg3 {[%clk 0:00:07]}  Ne3 {[%clk 0:00:17]} 41. Kf4 {[%clk 0:00:04]}  Nf5 {[%clk 0:00:18]} 42. g3 {[%clk 0:00:01]}  Kg7 {[%clk 0:00:17]} 43. Nd7 {[%clk 0:00:01]}  Rd8 {[%clk 0:00:17]} 44. Ne5 {[%clk 0:00:02]}  Nd6 {[%clk 0:00:15]} 45. Kf3 {[%clk 0:00:02]}  Rb8 {[%clk 0:00:13]} 46. Nc6 {[%clk 0:00:02]}  Rb7 {[%clk 0:00:14]} 47. Ra8 {[%clk 0:00:01]}  Nf5 {[%clk 0:00:14]} 48. Ne5 {[%clk 0:00:01]}  Rb3+ {[%clk 0:00:14]} 49. Kf4 {[%clk 0:00:02]}  Rb4+ {[%clk 0:00:14]} 50. Kf3 {[%clk 0:00:02]}  Nd4+ {[%clk 0:00:13]} 51. Kg2 {[%clk 0:00:01]}  Nf5 {[%clk 0:00:13]} 52. Ra7 {[%clk 0:00:01]}  Nh6 {[%clk 0:00:11]} 53. Nd7 {[%clk 0:00:01]}  Rb2+ {[%clk 0:00:10]} 54. Kf3 {[%clk 0:00:01]}  Rb3+ {[%clk 0:00:10]} 55. Kf2 {[%clk 0:00:01]}  Nf5 {[%clk 0:00:11]} 56. Ne5 {[%clk 0:00:01]}  Nd6 {[%clk 0:00:11]} 57. Nc6 {[%clk 0:00:02]}  Ne4+ {[%clk 0:00:11]} 58. Ke1 {[%clk 0:00:02]}  Nxg3 {[%clk 0:00:10]} 59. Nd8 {[%clk 0:00:01]}  Rf3 {[%clk 0:00:10]} 60. Nxe6+ {[%clk 0:00:01]}  Kh6 {[%clk 0:00:07]} 61. Ng5 {[%clk 0:00:02]}  Rf1+ {[%clk 0:00:06]} 62. Kd2 {[%clk 0:00:02]}  Rf5 {[%clk 0:00:05]} 63. Nxf7+ {[%clk 0:00:02]}  Kg7 {[%clk 0:00:05]} 64. Ng5+ {[%clk 0:00:03]}  Kf6 {[%clk 0:00:05]} 65. Rf7+ {[%clk 0:00:03]}  Ke5 {[%clk 0:00:06]} 66. Rg7 {[%clk 0:00:04]}  Rf2+ {[%clk 0:00:04]} 67. Ke3 {[%clk 0:00:03]}  Rf6 {[%clk 0:00:03]} 68. Re7+ {[%clk 0:00:03]}  Kf5 {[%clk 0:00:03]} 69. Ra7 {[%clk 0:00:03]}  Kg4 {[%clk 0:00:03]} 70. Ra4+ {[%clk 0:00:03]}  Kf5 {[%clk 0:00:01]} 71. Nf3 {[%clk 0:00:04]} 1-0


[Site "https://www.chess.com"]

[Event "Titled Tuesday Blitz August 17 2021"]
[White "Quintiliano Pinto, Renato R."]
[Black "Bacrot, Etienne"]
[WhiteFideId "2117568"]
[BlackFideId "605506"]
[WhiteElo "2439"]
[BlackElo "2673"]
[Result "1/2-1/2"]
[Round "09"]
[TimeControl "180+1"]
[Date "2021.08.17"]
[WhiteClock "0:00:11"]
[BlackClock "0:01:09"]

1. d4 {[%clk 0:03:00]}  Nf6 {[%clk 0:02:59]} 2. c4 {[%clk 0:02:59]}  e6 {[%clk 0:03:00]} 3. Nf3 {[%clk 0:02:59]}  d5 {[%clk 0:03:00]} 4. Nc3 {[%clk 0:02:59]}  Bb4 {[%clk 0:02:59]} 5. Bg5 {[%clk 0:02:58]}  h6 {[%clk 0:02:58]} 6. Bxf6 {[%clk 0:02:57]}  Qxf6 {[%clk 0:02:58]} 7. Qa4+ {[%clk 0:02:58]}  Nc6 {[%clk 0:02:58]} 8. e3 {[%clk 0:02:58]}  O-O {[%clk 0:02:55]} 9. Rc1 {[%clk 0:02:58]}  Qd8 {[%clk 0:02:50]} 10. a3 {[%clk 0:02:53]}  Be7 {[%clk 0:02:49]} 11. Be2 {[%clk 0:02:53]}  a6 {[%clk 0:02:43]} 12. O-O {[%clk 0:02:49]}  Bf6 {[%clk 0:02:28]} 13. Rfd1 {[%clk 0:02:38]}  Bd7 {[%clk 0:02:25]} 14. Qc2 {[%clk 0:02:34]}  dxc4 {[%clk 0:02:09]} 15. Bxc4 {[%clk 0:02:29]}  Ne7 {[%clk 0:02:06]} 16. Ne4 {[%clk 0:01:59]}  Ng6 {[%clk 0:02:05]} 17. Bd3 {[%clk 0:01:47]}  Bc6 {[%clk 0:02:04]} 18. Nxf6+ {[%clk 0:01:18]}  Qxf6 {[%clk 0:02:05]} 19. Bxg6 {[%clk 0:01:09]}  Bxf3 {[%clk 0:02:05]} 20. Bh7+ {[%clk 0:01:07]}  Kh8 {[%clk 0:02:05]} 21. gxf3 {[%clk 0:01:08]}  g6 {[%clk 0:02:05]} 22. Qe4 {[%clk 0:00:53]}  c6 {[%clk 0:02:00]} 23. Bxg6 {[%clk 0:00:51]}  Rg8 {[%clk 0:02:00]} 24. Kh1 {[%clk 0:00:51]}  Rxg6 {[%clk 0:01:59]} 25. Rg1 {[%clk 0:00:50]}  Rag8 {[%clk 0:01:57]} 26. Rxg6 {[%clk 0:00:42]}  Rxg6 {[%clk 0:01:58]} 27. Rg1 {[%clk 0:00:42]}  Rxg1+ {[%clk 0:01:43]} 28. Kxg1 {[%clk 0:00:43]}  Qg5+ {[%clk 0:01:43]} 29. Kh1 {[%clk 0:00:34]}  Qb5 {[%clk 0:01:32]} 30. Kg2 {[%clk 0:00:25]}  Qxb2 {[%clk 0:01:30]} 31. Qe5+ {[%clk 0:00:19]}  Kg8 {[%clk 0:01:28]} 32. Qg3+ {[%clk 0:00:16]}  Kh7 {[%clk 0:01:25]} 33. Qf4 {[%clk 0:00:16]}  Kg7 {[%clk 0:01:24]} 34. Qg3+ {[%clk 0:00:16]}  Kf8 {[%clk 0:01:23]} 35. Qb8+ {[%clk 0:00:15]}  Ke7 {[%clk 0:01:23]} 36. Qc7+ {[%clk 0:00:15]}  Kf6 {[%clk 0:01:23]} 37. Qf4+ {[%clk 0:00:15]}  Kg6 {[%clk 0:01:21]} 38. Qg3+ {[%clk 0:00:15]}  Kh7 {[%clk 0:01:21]} 39. Qf4 {[%clk 0:00:15]}  f5 {[%clk 0:01:12]} 40. Qc7+ {[%clk 0:00:13]}  Kg6 {[%clk 0:01:12]} 41. Qg3+ {[%clk 0:00:11]}  Kf7 {[%clk 0:01:08]} 42. Qc7+ {[%clk 0:00:11]}  Kg6 {[%clk 0:01:09]} 43. Qg3+ {[%clk 0:00:11]}  Kf7 {[%clk 0:01:09]} 44. Qc7+ {[%clk 0:00:11]}  Kg6 {[%clk 0:01:09]} 1/2-1/2


[Site "https://www.chess.com"]

[Event "Titled Tuesday Blitz August 17 2021"]
[White "Rakhmanov, Aleksandr"]
[Black "Le, Tuan Minh"]
[WhiteFideId "4173708"]
[BlackFideId "12401153"]
[WhiteElo "2498"]
[BlackElo "2450"]
[Result "1-0"]
[Round "09"]
[TimeControl "180+1"]
[Date "2021.08.17"]
[WhiteClock "0:00:12"]
[BlackClock "0:00:11"]

1. c4 {[%clk 0:02:56]}  c6 {[%clk 0:03:00]} 2. d4 {[%clk 0:02:55]}  d5 {[%clk 0:03:00]} 3. Nf3 {[%clk 0:02:55]}  Nf6 {[%clk 0:03:01]} 4. cxd5 {[%clk 0:02:56]}  cxd5 {[%clk 0:03:01]} 5. Nc3 {[%clk 0:02:57]}  Nc6 {[%clk 0:03:01]} 6. Bf4 {[%clk 0:02:58]}  a6 {[%clk 0:03:02]} 7. Ne5 {[%clk 0:02:56]}  Qb6 {[%clk 0:03:00]} 8. Nxc6 {[%clk 0:02:52]}  Qxc6 {[%clk 0:03:00]} 9. Rc1 {[%clk 0:02:51]}  Bd7 {[%clk 0:02:57]} 10. e3 {[%clk 0:02:51]}  Qb6 {[%clk 0:02:55]} 11. Bd3 {[%clk 0:02:52]}  e6 {[%clk 0:02:54]} 12. O-O {[%clk 0:02:53]}  Be7 {[%clk 0:02:48]} 13. Na4 {[%clk 0:02:53]}  Qa5 {[%clk 0:02:46]} 14. Nc5 {[%clk 0:02:53]}  Bc6 {[%clk 0:02:45]} 15. a3 {[%clk 0:02:26]}  Bxc5 {[%clk 0:02:44]} 16. Rxc5 {[%clk 0:02:25]}  Qd8 {[%clk 0:02:44]} 17. Qb3 {[%clk 0:02:14]}  Nd7 {[%clk 0:02:42]} 18. Rc3 {[%clk 0:02:13]}  O-O {[%clk 0:02:36]} 19. Rfc1 {[%clk 0:02:12]}  h6 {[%clk 0:02:34]} 20. Qd1 {[%clk 0:02:07]}  Nb6 {[%clk 0:02:32]} 21. b3 {[%clk 0:02:06]}  Qe7 {[%clk 0:02:29]} 22. a4 {[%clk 0:02:05]}  Rfc8 {[%clk 0:02:29]} 23. Qg4 {[%clk 0:02:04]}  Qf6 {[%clk 0:02:14]} 24. h4 {[%clk 0:02:00]}  Nd7 {[%clk 0:02:14]} 25. b4 {[%clk 0:01:49]}  Nf8 {[%clk 0:01:43]} 26. Be5 {[%clk 0:01:38]}  h5 {[%clk 0:01:43]} 27. Qxh5 {[%clk 0:01:14]}  Qe7 {[%clk 0:01:43]} 28. b5 {[%clk 0:01:13]}  axb5 {[%clk 0:01:43]} 29. axb5 {[%clk 0:01:13]}  Bd7 {[%clk 0:01:43]} 30. Rxc8 {[%clk 0:01:11]}  Rxc8 {[%clk 0:01:43]} 31. Rxc8 {[%clk 0:01:11]}  Bxc8 {[%clk 0:01:44]} 32. Qg4 {[%clk 0:01:10]}  f6 {[%clk 0:01:44]} 33. Bb8 {[%clk 0:01:00]}  Bd7 {[%clk 0:01:44]} 34. Qg3 {[%clk 0:00:58]}  Qa3 {[%clk 0:01:41]} 35. Be2 {[%clk 0:00:48]}  Qb2 {[%clk 0:01:40]} 36. Bh5 {[%clk 0:00:43]}  Qxb5 {[%clk 0:01:20]} 37. Bd6 {[%clk 0:00:44]}  Qb1+ {[%clk 0:01:19]} 38. Kh2 {[%clk 0:00:44]}  Qb6 {[%clk 0:00:28]} 39. Bxf8 {[%clk 0:00:29]}  Kxf8 {[%clk 0:00:29]} 40. Qb8+ {[%clk 0:00:29]}  Ke7 {[%clk 0:00:29]} 41. Qg8 {[%clk 0:00:29]}  Qc7+ {[%clk 0:00:25]} 42. f4 {[%clk 0:00:26]}  Qc1 {[%clk 0:00:22]} 43. Qxg7+ {[%clk 0:00:25]}  Kd6 {[%clk 0:00:22]} 44. Qxf6 {[%clk 0:00:20]}  b5 {[%clk 0:00:23]} 45. Bg6 {[%clk 0:00:13]}  Kc6 {[%clk 0:00:11]} 46. h5 {[%clk 0:00:12]} 1-0


[Site "https://www.chess.com"]

[Event "Titled Tuesday Blitz August 17 2021"]
[White "Rodriguez Hernandez, Luis Daniel"]
[Black "Thing, Bibek"]
[WhiteFideId "3506770"]
[BlackFideId "12303135"]
[WhiteElo "2133"]
[BlackElo "2000"]
[Result "1-0"]
[Round "09"]
[TimeControl "180+1"]
[Date "2021.08.17"]
[WhiteClock "0:00:14"]
[BlackClock "0:00:02"]

1. e4 {[%clk 0:03:00]}  e5 {[%clk 0:02:58]} 2. Nf3 {[%clk 0:03:00]}  Nc6 {[%clk 0:02:59]} 3. Bc4 {[%clk 0:03:01]}  Bc5 {[%clk 0:02:58]} 4. b4 {[%clk 0:03:01]}  Bxb4 {[%clk 0:02:57]} 5. c3 {[%clk 0:03:02]}  Be7 {[%clk 0:02:56]} 6. d4 {[%clk 0:03:03]}  Na5 {[%clk 0:02:56]} 7. Be2 {[%clk 0:03:03]}  exd4 {[%clk 0:02:33]} 8. Qxd4 {[%clk 0:03:04]}  Nf6 {[%clk 0:02:29]} 9. e5 {[%clk 0:03:04]}  Nc6 {[%clk 0:02:23]} 10. Qh4 {[%clk 0:03:02]}  Nd5 {[%clk 0:01:59]} 11. Qg3 {[%clk 0:03:03]}  g6 {[%clk 0:01:59]} 12. O-O {[%clk 0:03:02]}  d6 {[%clk 0:01:58]} 13. Rd1 {[%clk 0:03:00]}  Nb6 {[%clk 0:01:29]} 14. c4 {[%clk 0:03:01]}  Nd7 {[%clk 0:01:12]} 15. Bh6 {[%clk 0:02:47]}  Ndxe5 {[%clk 0:01:09]} 16. Nxe5 {[%clk 0:02:42]}  Nxe5 {[%clk 0:01:10]} 17. Bg7 {[%clk 0:02:42]}  Bf6 {[%clk 0:01:10]} 18. Bxh8 {[%clk 0:02:41]}  Bxh8 {[%clk 0:01:10]} 19. Nc3 {[%clk 0:02:41]}  Kf8 {[%clk 0:01:08]} 20. c5 {[%clk 0:02:40]}  Be6 {[%clk 0:00:45]} 21. cxd6 {[%clk 0:02:19]}  cxd6 {[%clk 0:00:46]} 22. Ne4 {[%clk 0:02:19]}  d5 {[%clk 0:00:38]} 23. Ng5 {[%clk 0:02:19]}  Kg8 {[%clk 0:00:30]} 24. Rab1 {[%clk 0:01:55]}  b6 {[%clk 0:00:30]} 25. Re1 {[%clk 0:01:43]}  Rc8 {[%clk 0:00:26]} 26. Ba6 {[%clk 0:01:40]}  Bf5 {[%clk 0:00:14]} 27. Rbd1 {[%clk 0:01:30]}  Rc5 {[%clk 0:00:11]} 28. h4 {[%clk 0:01:09]}  Nd7 {[%clk 0:00:08]} 29. Qd6 {[%clk 0:01:04]}  h6 {[%clk 0:00:07]} 30. Nf3 {[%clk 0:00:52]}  Be6 {[%clk 0:00:03]} 31. Bd3 {[%clk 0:00:41]}  Qc7 {[%clk 0:00:03]} 32. Qxc7 {[%clk 0:00:41]}  Rxc7 {[%clk 0:00:03]} 33. Bxg6 {[%clk 0:00:42]}  Bf6 {[%clk 0:00:03]} 34. Bh5 {[%clk 0:00:31]}  Nc5 {[%clk 0:00:04]} 35. g3 {[%clk 0:00:28]}  a5 {[%clk 0:00:04]} 36. Nd4 {[%clk 0:00:26]}  Bxd4 {[%clk 0:00:04]} 37. Rxd4 {[%clk 0:00:27]}  Ne4 {[%clk 0:00:04]} 38. Bf3 {[%clk 0:00:27]}  Nf6 {[%clk 0:00:04]} 39. g4 {[%clk 0:00:25]}  Rc2 {[%clk 0:00:03]} 40. g5 {[%clk 0:00:25]}  hxg5 {[%clk 0:00:04]} 41. hxg5 {[%clk 0:00:25]}  Nh7 {[%clk 0:00:05]} 42. Bxd5 {[%clk 0:00:24]}  Nxg5 {[%clk 0:00:04]} 43. Re5 {[%clk 0:00:17]}  f6 {[%clk 0:00:01]} 44. Bxe6+ {[%clk 0:00:15]}  Kg7 {[%clk 0:00:02]} 45. Rd7+ {[%clk 0:00:14]}  Kg6 {[%clk 0:00:02]} 46. Bf5+ {[%clk 0:00:14]}  Kh5 {[%clk 0:00:02]} 47. Bxc2 {[%clk 0:00:14]}  fxe5 {[%clk 0:00:01]} 48. Rb7 {[%clk 0:00:14]}  b5 {[%clk 0:00:02]} 49. Rxb5 {[%clk 0:00:14]} 1-0


[Site "https://www.chess.com"]

[Event "Titled Tuesday Blitz August 17 2021"]
[White "Rozhkov, Viacheslav"]
[Black "Vlassov, Nikolai"]
[WhiteFideId "4181484"]
[BlackFideId "4103360"]
[WhiteElo "2324"]
[BlackElo "2407"]
[Result "0-1"]
[Round "09"]
[TimeControl "180+1"]
[Date "2021.08.17"]
[WhiteClock "0:00:04"]
[BlackClock "0:01:34"]

1. e4 {[%clk 0:03:00]}  Nc6 {[%clk 0:02:59]} 2. Bb5 {[%clk 0:02:59]}  Nf6 {[%clk 0:02:58]} 3. Bxc6 {[%clk 0:02:58]}  dxc6 {[%clk 0:02:56]} 4. e5 {[%clk 0:02:49]}  Nd5 {[%clk 0:02:50]} 5. d4 {[%clk 0:02:46]}  Bf5 {[%clk 0:02:47]} 6. Nf3 {[%clk 0:02:39]}  e6 {[%clk 0:02:42]} 7. O-O {[%clk 0:02:38]}  Nb4 {[%clk 0:02:36]} 8. Ne1 {[%clk 0:02:28]}  c5 {[%clk 0:02:36]} 9. c3 {[%clk 0:02:25]}  Nc6 {[%clk 0:02:36]} 10. Be3 {[%clk 0:02:25]}  Qd7 {[%clk 0:02:27]} 11. a3 {[%clk 0:02:15]}  O-O-O {[%clk 0:02:25]} 12. Qa4 {[%clk 0:02:01]}  cxd4 {[%clk 0:02:13]} 13. cxd4 {[%clk 0:02:00]}  Kb8 {[%clk 0:02:13]} 14. Nc3 {[%clk 0:01:02]}  Nxd4 {[%clk 0:02:04]} 15. Qxd7 {[%clk 0:00:49]}  Rxd7 {[%clk 0:02:04]} 16. Rd1 {[%clk 0:00:49]}  Ne2+ {[%clk 0:01:55]} 17. Kh1 {[%clk 0:00:49]}  Rxd1 {[%clk 0:01:55]} 18. Nxd1 {[%clk 0:00:49]}  Be7 {[%clk 0:01:52]} 19. Nf3 {[%clk 0:00:39]}  Rd8 {[%clk 0:01:48]} 20. Re1 {[%clk 0:00:28]}  Bc2 {[%clk 0:01:45]} 21. Nd2 {[%clk 0:00:10]}  Nd4 {[%clk 0:01:37]} 22. Nc3 {[%clk 0:00:08]}  Nf5 {[%clk 0:01:35]} 23. g3 {[%clk 0:00:04]}  Nxe3 {[%clk 0:01:34]} 0-1


[Site "https://www.chess.com"]